bitfinex/quotes_ETHUSD_20260120
["timestamp","ask_amount","ask_price","bid_price","bid_amount"]
[1768885322625,3.63195546,3167.5,3165.0,6.31911532]
[1768885323024,3.63195546,3167.5,3165.0,3.15955766]
[1768885323224,3.63195546,3167.5,3165.0,6.31911532]
[1768885323451,3.63195546,3168.4,3165.1,0.516]
[1768885323746,0.88119555,3168.3,3165.2,1.47049221]
[1768885323942,3.52611319,3168.1,3165.2,1.47049221]
[1768885324153,3.52611319,3167.9,3165.0,3.15955766]
[1768885324325,3.52611319,3167.9,3164.9,9.47897247]
[1768885324516,3.52611319,3167.9,3164.9,6.31931498]
[1768885324848,3.13223644,3167.7,3164.9,3.67565749]
[1768885325056,3.13223644,3167.4,3163.6,0.0376341]
[1768885325256,3.13223644,3167.4,3164.8,3.15975511]
[1768885325562,2.15393571,3172.8,3169.0,3.29991469]
[1768885325760,30.0,3172.1,3168.5,0.128]
[1768885325916,31.4777278,3171.9,3168.3,0.516]
[1768885326118,5.62356345,3171.4,3168.2,12.62546556]
[1768885326432,0.56235635,3171.3,3169.0,0.036103]
[1768885326628,1.08035635,3171.3,3168.7,0.036103]
[1768885327153,1.08035635,3171.3,3168.6,0.036103]
[1768885327718,5.62356345,3170.7,3168.2,6.31273278]
[1768885328023,0.56235635,3170.6,3168.2,3.15636639]
[1768885328255,0.518,3170.5,3167.4,3.15712252]
[1768885328649,0.518,3170.5,3167.3,12.62905312]
[1768885328899,6.82615328,3170.5,3167.3,12.46198724]
[1768885329037,5.62356345,3170.2,3167.3,9.30472396]
[1768885329242,0.56235635,3170.1,3167.3,12.46198724]
[1768885329764,0.56235635,3170.1,3167.3,9.30472396]
[1768885329934,6.1859198,3170.1,3167.3,9.30472396]
[1768885330267,6.1859198,3170.1,3167.3,12.46198724]
[1768885330268,6.30914826,3170.0,3167.3,12.46198724]
[1768885330466,0.128,3169.9,3166.5,3.15797506]
[1768885330673,5.62356345,3169.4,3167.3,3.15723457]
[1768885330961,5.62356345,3169.4,3167.3,3.1571714]
[1768885331267,3.63195546,3171.2,3170.0,14.54107]
[1768885331557,3.63195546,3171.2,3168.7,5.62356345]
[1768885331558,0.518,3172.1,3170.1,14.572993]
[1768885331719,0.518,3172.1,3170.3,0.125933]
[1768885331920,0.518,3172.1,3170.3,14.572993]
[1768885332360,0.518,3172.1,3170.4,9.46252836]
[1768885332768,0.518,3172.1,3170.5,3.63195546]
[1768885332950,0.518,3172.1,3170.9,18.20494846]
[1768885333280,0.518,3172.1,3170.9,3.63195546]
[1768885333442,0.518,3172.1,3170.4,3.15417612]
[1768885333649,0.518,3172.1,3170.4,6.30835224]
[1768885334380,0.518,3172.1,3170.1,13.09531946]
[1768885334680,0.518,3172.1,3170.4,11.726993]
[1768885334881,0.36704011,3172.0,3170.4,11.726993]
[1768885335084,0.518,3172.1,3170.4,11.726993]
[1768885335282,0.518,3172.1,3170.5,3.63195546]
[1768885335648,0.001,3172.5,3170.5,3.63195546]
[1768885335873,0.001,3172.5,3170.6,11.726993]
[1768885336071,0.001,3172.5,3170.6,1.58739485]
[1768885336386,0.001,3172.5,3171.3,11.726993]
[1768885336684,0.001,3172.5,3171.0,11.726993]
[1768885337256,0.001,3172.5,3171.3,11.726993]
[1768885337849,0.001,3172.5,3171.7,3.63195546]
[1768885338084,0.001,3172.5,3171.4,0.515]
[1768885338289,0.001,3172.5,3171.4,4.14695546]
[1768885338485,0.001,3172.5,3171.8,11.726993]
[1768885338688,0.001,3172.5,3171.7,11.726993]
[1768885338851,0.001,3172.5,3170.9,3.15360054]
[1768885339060,0.001,3172.5,3170.8,3.63195546]
[1768885339256,0.001,3172.5,3171.1,3.153467]
[1768885339456,0.001,3172.5,3171.0,3.63195546]
[1768885339878,0.001,3172.5,3171.0,6.78551674]
[1768885340083,0.001,3172.5,3171.0,3.63195546]
[1768885340386,0.001,3172.5,3170.1,4.14695546]
[1768885340387,0.516,3172.4,3170.1,4.14695546]
[1768885340585,0.516,3172.4,3170.6,0.121703]
[1768885340586,3.66819668,3172.4,3170.6,0.121703]
[1768885341190,6.30519904,3172.5,3170.6,3.63195546]
[1768885341564,9.45729856,3172.5,3170.0,3.15457413]
[1768885341765,0.128,3171.6,3168.9,3.63195546]
[1768885341964,0.515,3171.5,3169.0,3.1554972]
[1768885342190,0.128,3171.4,3168.9,3.63195546]
[1768885342492,0.128,3171.2,3168.9,6.78761426]
[1768885342686,0.95878429,3171.1,3168.9,6.78761426]
[1768885343303,0.515,3171.0,3169.3,0.121703]
[1768885343454,0.515,3171.0,3169.0,0.98148598]
[1768885343662,0.128,3170.9,3168.5,0.121703]
[1768885343888,0.128,3170.9,3168.2,0.98148598]
[1768885344306,0.128,3170.9,3168.4,3.15609764]
[1768885344501,0.128,3170.7,3168.2,0.98148598]
[1768885344806,0.95893347,3170.6,3168.2,0.98148598]
[1768885344978,5.75156345,3170.5,3167.4,0.98148598]
[1768885345317,5.75156345,3170.5,3167.9,3.15659531]
[1768885345520,5.75156345,3170.5,3167.8,0.98148598]
[1768885345673,0.67104969,3170.4,3167.8,0.98148598]
[1768885346075,0.128,3170.2,3167.8,0.98148598]
[1768885346504,0.128,3170.0,3168.5,0.002]
[1768885346704,6.30894924,3170.1,3168.5,0.002]
[1768885348407,3.15447462,3170.1,3168.5,0.002]
[1768885348614,0.94632248,3170.0,3168.5,0.002]
[1768885348814,0.94632248,3170.0,3168.1,0.002]
[1768885348815,0.128,3169.9,3168.1,0.002]
[1768885349027,5.62356345,3169.8,3168.1,0.002]
[1768885349230,0.128,3169.9,3168.1,0.002]
[1768885350078,0.94632248,3170.0,3168.1,0.002]
[1768885350280,0.515,3169.9,3168.1,0.002]
[1768885350715,9.46431951,3169.8,3168.1,0.002]
[1768885350921,0.99793195,3169.7,3168.1,0.002]
[1768885351943,5.62356345,3169.6,3168.1,0.002]
[1768885352241,5.62356345,3169.6,3167.1,0.97948598]
[1768885352242,0.128,3169.5,3167.1,0.97948598]
[1768885352738,0.128,3169.3,3167.1,0.97948598]
[1768885352909,0.515,3169.2,3167.1,0.97948598]
[1768885354637,6.31094,3169.1,3167.1,0.97948598]
[1768885354823,0.682594,3169.0,3167.1,0.97948598]
[1768885355222,0.128,3168.9,3167.1,0.97948598]
[1768885356445,0.682594,3169.0,3167.2,0.98148598]
[1768885356820,6.3113383,3168.9,3167.2,0.98148598]
[1768885357027,9.46700745,3168.9,3166.9,0.002]
[1768885357347,1.01496015,3168.8,3166.9,0.002]
[1768885357536,1.01496015,3168.8,3166.9,0.98348598]
[1768885357730,0.515,3168.7,3167.1,0.98148598]
[1768885358347,0.515,3168.7,3167.2,0.98148598]
[1768885358551,0.515,3168.7,3167.3,0.98148598]
[1768885358747,0.88206692,3168.7,3167.5,0.98148598]
[1768885359048,0.515,3168.7,3167.5,0.98148598]
[1768885360162,6.82676173,3168.7,3167.4,0.002]
[1768885360362,6.82676173,3168.7,3166.9,0.98348598]
[1768885360363,0.128,3168.6,3166.9,0.002]
[1768885360660,0.128,3168.4,3166.9,0.00079209]
[1768885360828,0.128,3168.2,3166.9,0.00079209]
[1768885361031,0.515,3168.1,3166.9,0.00079209]
[1768885362278,5.0,3167.8,3166.9,0.00079209]
[1768885362871,3.1568646,3167.7,3166.9,0.00079209]
[1768885363083,8.15686329,3167.8,3166.9,0.00079209]
[1768885363084,5.0,3167.8,3166.9,0.00079209]
[1768885363429,11.31353807,3167.8,3166.9,0.00079209]
[1768885363628,11.31353807,3167.8,3166.2,0.98148598]
[1768885364128,14.4703112,3167.8,3166.2,0.98148598]
[1768885364329,1.44703112,3167.7,3166.2,0.98148598]
[1768885364830,6.31392852,3167.6,3166.2,0.98148598]
[1768885365173,0.515,3167.5,3166.2,0.98148598]
[1768885365669,0.515,3167.5,3166.3,0.92501932]
[1768885366840,0.515,3167.5,3166.5,0.92501932]
[1768885367428,0.128,3169.1,3166.6,0.92501932]
[1768885367629,0.128,3168.9,3166.6,0.92501932]
[1768885368276,0.99664484,3171.1,3168.2,0.92501932]
[1768885368457,0.99664484,3171.1,3166.6,1.894]
[1768885368458,0.99664484,3171.1,3167.9,0.511]
[1768885368667,0.99664484,3170.5,3167.0,0.92501932]
[1768885368964,5.62356345,3170.6,3167.1,12.62985064]
[1768885368965,0.99664484,3170.1,3167.1,12.62985064]
[1768885369182,0.99664484,3170.1,3167.2,0.92501932]
[1768885369377,0.99664484,3170.1,3167.4,0.92501932]
[1768885369575,0.99664484,3170.1,3167.5,0.511]
[1768885369936,1.17702083,3170.4,3167.6,0.92501932]
[1768885370164,1.17702083,3170.4,3167.5,0.511]
[1768885370165,0.515,3170.4,3167.9,0.92501932]
[1768885370365,0.515,3170.4,3168.1,0.92501932]
[1768885370638,0.99664484,3170.3,3167.7,0.511]
[1768885370838,0.99664484,3170.1,3167.5,6.31412786]
[1768885371039,0.99664484,3169.9,3167.6,1.03962513]
[1768885371350,0.99664484,3169.9,3167.5,6.31412786]
[1768885371552,0.128,3169.8,3167.5,6.31412786]
[1768885371757,0.99664484,3169.7,3167.5,6.31412786]
[1768885371941,0.515,3169.6,3167.5,6.31412786]
[1768885372445,0.99664484,3169.5,3167.4,6.31429465]
[1768885372651,0.99664484,3169.5,3167.4,6.94572411]
[1768885372847,7.30698748,3169.4,3167.4,3.78856051]
[1768885373035,7.30698748,3169.4,3167.4,3.15713105]
[1768885373475,0.91224596,3169.3,3167.4,3.15713105]
[1768885373675,0.91224596,3169.3,3166.5,1.6491696]
[1768885373875,0.91224596,3169.3,3167.1,3.1574349]
[1768885374043,0.91224596,3169.3,3166.7,3.15785283]
[1768885374250,0.91224596,3169.3,3167.0,3.15755592]
[1768885374663,0.91224596,3169.3,3166.5,0.92501932]
[1768885374860,0.91224596,3168.9,3166.4,0.511]
[1768885375068,0.91224596,3168.7,3166.5,0.36692299]
[1768885375541,0.91224596,3168.7,3166.5,3.52498394]
[1768885376757,0.91224596,3168.5,3166.5,6.68304489]
[1768885378891,4.06841311,3168.4,3166.5,6.68304489]
[1768885379190,0.40684131,3168.3,3166.5,6.68304489]
[1768885379391,1.31908727,3168.3,3166.5,6.68304489]
[1768885380092,1.31908727,3168.3,3166.5,3.52498394]
[1768885380300,0.91224596,3168.2,3166.4,3.15806584]
[1768885380481,0.91224596,3168.0,3166.3,3.15823752]
[1768885380871,0.91224596,3167.8,3166.0,3.15855969]
[1768885381264,0.91224596,3167.8,3166.0,6.31711938]
[1768885381477,0.514,3168.1,3166.0,6.31711938]
[1768885381478,0.72255765,3167.7,3166.0,6.31711938]
[1768885381690,1.31908727,3168.3,3166.1,0.92911868]
[1768885381890,0.514,3168.2,3166.3,0.92911868]
[1768885382786,0.514,3168.2,3166.4,10.40360072]
[1768885382993,4.06792016,3168.9,3166.5,0.92911868]
[1768885383187,4.06792016,3168.9,3166.6,2.28529482]
[1768885383188,0.45819202,3168.8,3166.6,2.28529482]
[1768885383388,1.37043798,3168.8,3166.7,0.92911868]
[1768885383612,0.91224596,3168.8,3166.6,1.35617614]
[1768885383907,0.91224596,3168.8,3166.6,1.86717614]
[1768885384333,0.91224596,3168.8,3166.7,0.92911868]
[1768885384610,0.514,3169.0,3166.7,0.92911868]
[1768885384774,0.514,3169.0,3167.0,12.63024944]
[1768885384974,0.514,3169.0,3167.1,0.92911868]
[1768885385174,0.514,3169.0,3167.2,0.511]
[1768885385380,0.514,3169.0,3167.3,0.92911868]
[1768885385607,1.42624596,3169.0,3167.0,9.47268708]
[1768885385813,0.45817827,3168.9,3167.1,0.94726871]
[1768885386007,0.45817827,3168.9,3167.1,1.45826871]
[1768885386319,1.42624596,3169.0,3167.1,1.45826871]
[1768885386616,0.514,3169.0,3167.1,2.38738739]
[1768885386777,0.514,3169.0,3167.2,9.47208891]
[1768885387115,0.514,3169.0,3167.1,2.38738739]
[1768885387116,0.91224596,3168.9,3166.8,0.27962948]
[1768885387286,0.91224596,3168.9,3166.8,3.15775138]
[1768885387489,0.91224596,3168.9,3167.0,3.15753706]
[1768885387677,0.91224596,3168.9,3167.1,3.15745557]
[1768885387885,6.31113916,3169.0,3166.9,3.15756681]
[1768885387886,0.91224596,3168.7,3166.9,3.15756681]
[1768885388182,0.91224596,3168.7,3166.7,3.15779873]
[1768885388800,6.31193586,3168.6,3166.7,3.15784209]
[1768885389128,0.91224596,3168.5,3166.7,0.68268395]
[1768885389848,0.91224596,3168.5,3166.7,0.511]
[1768885390154,0.91224596,3168.5,3166.3,3.16026007]
[1768885390358,0.91224596,3168.5,3166.3,0.002]
[1768885390556,0.91224596,3168.5,3166.4,3.15808193]
[1768885391015,0.91224596,3168.3,3166.3,0.002]
[1768885391220,1.63470399,3168.2,3166.3,0.63389199]
[1768885391452,0.91224596,3168.0,3166.3,0.63389199]
[1768885391847,0.91224596,3168.0,3166.3,1.14489199]
[1768885392961,3.15666529,3167.9,3166.3,4.30308512]
[1768885394230,3.15666529,3167.9,3166.3,3.79208512]
[1768885394430,0.40689113,3167.8,3166.3,4.30308512]
[1768885394630,0.40689113,3167.8,3166.3,0.002]
[1768885394631,0.91224596,3167.7,3166.3,0.002]
[1768885394860,0.91224596,3167.7,3166.3,3.16024937]
[1768885395057,3.56366569,3167.8,3166.3,0.002]
[1768885395446,0.91224596,3167.7,3166.3,0.002]
[1768885395767,0.44759117,3167.6,3166.3,0.002]
[1768885396078,0.514,3167.5,3166.3,0.002]
[1768885396374,0.91224596,3167.4,3166.3,0.002]
[1768885396734,0.91224596,3167.4,3166.6,0.002]
[1768885396936,3.15726328,3167.3,3166.6,0.002]
[1768885397187,0.40695092,3167.2,3166.6,0.002]
[1768885398131,0.40695092,3167.2,3166.3,0.002]
[1768885399158,3.56431638,3167.2,3166.3,0.002]
[1768885399788,0.514,3167.5,3166.3,0.002]
[1768885399989,0.91224596,3167.4,3166.3,0.002]
[1768885400995,0.91224596,3167.2,3166.3,0.002]
[1768885401383,6.31492532,3167.1,3166.3,0.002]
[1768885401772,0.514,3167.0,3166.3,0.002]
[1768885401973,0.68289253,3166.9,3166.3,0.002]
[1768885402905,0.91224596,3166.8,3166.0,0.002]
[1768885403704,7.22778006,3166.8,3166.0,0.002]
[1768885403901,4.07001301,3166.8,3166.0,0.002]
[1768885404065,0.72276978,3166.7,3166.0,0.002]
[1768885404489,4.07001251,3166.8,3166.0,0.002]
[1768885404683,0.99764619,3166.7,3166.0,0.002]
[1768885404991,0.99764619,3166.7,3165.0,3.16155322]
[1768885405189,0.99764619,3166.7,3165.1,0.94728874]
[1768885405190,0.514,3166.6,3165.1,0.94728874]
[1768885405429,0.514,3166.6,3165.3,6.3185164]
[1768885406315,3.1576917,3166.9,3165.3,6.3185164]
[1768885406583,8.80826859,3167.9,3165.4,0.94728874]
[1768885406584,0.514,3167.0,3165.4,0.94728874]
[1768885406821,0.514,3167.0,3165.5,1.98979507]
[1768885407031,1.51164619,3167.0,3165.5,1.04250633]
[1768885407384,1.51164619,3167.0,3165.0,4.10879754]
[1768885407385,0.99764619,3166.7,3165.0,0.002]
[1768885409594,0.99764619,3166.5,3165.0,0.002]
[1768885409805,0.99764619,3166.3,3165.0,0.002]
[1768885410589,0.99764619,3166.3,3164.9,0.002]
[1768885411600,0.99764619,3166.1,3164.9,0.002]
[1768885411801,0.99764619,3165.9,3164.9,0.002]
[1768885412122,0.99764619,3165.7,3164.9,0.002]
[1768885412421,0.99764619,3165.7,3164.7,0.002]
[1768885413221,0.99764619,3165.7,3164.5,0.002]
[1768885413520,0.99764619,3165.5,3164.5,0.002]
[1768885413684,9.4768764,3165.6,3163.7,0.002]
[1768885413685,0.99764619,3165.3,3163.7,0.002]
[1768885413886,0.99764619,3165.1,3163.7,0.002]
[1768885414423,0.514,3165.0,3163.7,0.94928874]
[1768885415410,8.68146481,3166.7,3163.7,0.94928874]
[1768885415411,0.99764619,3166.1,3163.9,0.94728874]
[1768885415631,0.99764619,3166.5,3164.4,0.94728874]
[1768885415790,0.514,3166.4,3164.8,5.52354438]
[1768885415990,0.514,3166.4,3164.8,6.47083312]
[1768885416334,0.5116184,3166.4,3164.8,0.94728874]
[1768885416908,0.99764619,3166.9,3164.8,0.94728874]
[1768885417102,0.92952086,3166.8,3165.0,0.94728874]
[1768885417517,0.92952086,3166.8,3165.1,6.31891566]
[1768885417823,5.08493785,3166.8,3165.1,7.2662044]
[1768885417998,4.66941699,3166.8,3165.1,7.2662044]
[1768885418194,4.66941699,3166.8,3164.0,3.80762789]
[1768885418195,0.99764619,3166.7,3164.3,0.94728874]
[1768885418396,0.99764619,3166.5,3164.2,3.16032882]
[1768885418600,0.99764619,3166.5,3164.0,0.94728874]
[1768885419116,0.99764619,3166.5,3164.4,3.16014373]
[1768885419319,0.99764619,3166.5,3164.0,4.10783934]
[1768885419494,0.99764619,3166.5,3164.7,3.15983987]
[1768885419693,0.99764619,3166.5,3163.9,0.509]
[1768885419694,0.99764619,3166.2,3164.2,0.94728874]
[1768885420125,3.15826043,3166.3,3164.1,6.32091272]
[1768885420126,0.99764619,3166.0,3164.1,6.32091272]
[1768885420427,0.514,3166.1,3164.2,0.94728874]
[1768885420631,0.514,3166.1,3164.2,6.47083312]
[1768885420807,0.514,3166.0,3164.4,0.94728874]
[1768885421497,1.51164619,3166.0,3164.3,1.59522022]
[1768885421826,0.99764619,3165.9,3164.3,0.509]
[1768885422326,0.99764619,3165.9,3164.4,0.002]
[1768885422994,0.99764619,3165.9,3164.0,0.002]
[1768885423433,0.9722231,3165.5,3164.0,0.002]
[1768885423641,0.9722231,3165.1,3164.0,0.002]
[1768885424340,0.9722231,3165.1,3162.8,0.002]
[1768885424999,0.9722231,3165.1,3162.8,0.05515241]
[1768885425204,1.4852231,3165.0,3162.8,0.05515241]
[1768885425404,1.4852231,3164.9,3162.8,0.05515241]
[1768885425706,0.513,3164.8,3162.8,0.05515241]
[1768885426048,0.513,3164.8,3163.1,0.05315241]
[1768885426243,0.9722231,3165.4,3163.3,0.05315241]
[1768885426599,0.513,3165.7,3163.3,0.05315241]
[1768885427124,0.9722231,3165.6,3163.4,0.05315241]
[1768885427636,0.9722231,3165.6,3163.5,0.509]
[1768885427800,0.9722231,3165.6,3163.5,0.508]
[1768885428317,0.9722231,3165.6,3163.6,0.05315241]
[1768885429915,0.513,3165.7,3163.8,0.05315241]
[1768885431141,0.9722231,3167.0,3163.8,0.05315241]
[1768885431349,0.9722231,3167.0,3163.7,0.61893983]
[1768885431350,0.9722231,3166.7,3164.0,0.05315241]
[1768885431563,0.9722231,3166.2,3163.7,0.61893983]
[1768885431850,0.9722231,3166.2,3163.1,0.56115241]
[1768885432220,0.9722231,3166.0,3163.2,0.05315241]
[1768885432946,0.9722231,3166.0,3163.3,0.508]
[1768885433456,0.9722231,3166.0,3163.4,0.05315241]
[1768885434007,0.9722231,3166.0,3162.9,0.128]
[1768885434288,0.9722231,3166.0,3162.9,0.636]
[1768885434569,0.9722231,3166.0,3163.0,0.05315241]
[1768885434710,0.9722231,3166.0,3162.9,6.26424592]
[1768885434711,0.9722231,3166.0,3163.2,0.05315241]
[1768885435047,0.001,3165.4,3163.2,0.05315241]
[1768885436436,0.99383394,3165.4,3163.3,0.507]
[1768885436639,0.99383394,3165.4,3163.4,0.05315241]
[1768885437042,0.99383394,3165.4,3163.2,0.507]
[1768885437956,0.99383394,3165.4,3162.9,0.18115241]
[1768885438116,0.99383394,3165.4,3163.2,0.507]
[1768885438447,0.99383394,3165.4,3162.9,0.18115241]
[1768885438646,0.99283394,3165.2,3163.1,6.32291106]
[1768885438958,0.99283394,3165.0,3163.2,0.68299111]
[1768885440636,0.99283394,3164.8,3163.2,0.68299111]
[1768885440834,0.99283394,3164.8,3163.1,3.16145553]
[1768885441231,0.99283394,3164.8,3163.2,3.16132479]
[1768885441460,0.99283394,3164.8,3163.2,6.37583278]
[1768885441667,0.99283394,3164.8,3163.2,6.32268037]
[1768885441887,0.99283394,3164.8,3163.2,3.16132479]
[1768885442049,0.99283394,3164.8,3163.3,0.31613248]
[1768885442381,0.99283394,3164.8,3162.8,0.002]
[1768885442766,0.99283394,3164.8,3162.9,0.507]
[1768885442767,0.99283394,3164.7,3162.9,0.507]
[1768885443106,0.99283394,3164.7,3162.8,6.3255108]
[1768885443402,0.99283394,3164.7,3162.8,6.8325108]
[1768885443551,0.99283394,3164.5,3162.8,3.1637554]
[1768885444164,0.96157394,3164.5,3162.8,6.3255108]
[1768885444886,0.99283394,3164.4,3162.8,3.1637554]
[1768885445184,0.99283394,3164.4,3162.8,6.3255108]
[1768885445571,0.99283394,3164.4,3162.8,3.1637554]
[1768885445758,0.99283394,3164.4,3162.9,0.63256106]
[1768885446166,0.99283394,3164.4,3162.8,0.002]
[1768885446892,0.99283394,3164.2,3163.2,0.002]
[1768885448807,0.99283394,3164.0,3163.2,0.002]
[1768885449253,0.99283394,3164.0,3162.9,0.002]
[1768885450690,0.99283394,3164.6,3163.0,3.16155548]
[1768885450886,0.99283394,3164.6,3163.1,0.32479679]
[1768885451184,0.99283394,3164.6,3163.1,0.83079679]
[1768885451388,0.99283394,3164.6,3163.1,0.32479679]
[1768885451576,0.99283394,3164.5,3163.1,0.32479679]
[1768885452293,0.99283394,3164.4,3162.9,3.16363266]
[1768885452794,0.99283394,3164.2,3162.9,0.002]
[1768885454999,0.99283394,3164.0,3162.9,0.002]
[1768885455196,0.99283394,3163.8,3162.9,0.002]
[1768885456909,3.15971607,3164.9,3162.9,0.002]
[1768885456910,0.99283394,3164.4,3163.0,5.98846734]
[1768885457473,0.99283394,3164.9,3163.0,6.07287975]
[1768885457676,0.99283394,3164.9,3163.1,1.60658461]
[1768885457867,0.99383394,3165.4,3163.6,5.98846734]
[1768885458069,0.99383394,3165.4,3163.7,0.506]
[1768885458965,0.99383394,3165.4,3163.8,6.3215121]
[1768885460269,0.99383394,3165.4,3163.8,9.48226815]
[1768885460573,0.99383394,3165.4,3163.9,0.99882681]
[1768885461183,0.99383394,3165.4,3164.0,6.3211125]
[1768885461384,0.99383394,3165.4,3164.0,9.48166875]
[1768885461800,0.99383394,3165.4,3164.0,6.3211125]
[1768885461987,0.99383394,3165.4,3164.1,0.506]
[1768885462311,0.99383394,3165.4,3164.2,0.36665563]
[1768885462674,0.99383394,3165.4,3163.9,3.66662996]
[1768885462870,0.99383394,3165.4,3163.9,6.82728611]
[1768885463877,0.99383394,3165.4,3164.0,0.506]
[1768885464078,0.99383394,3165.4,3163.1,7.59505195]
[1768885464079,0.92485393,3165.3,3163.2,3.16329686]
[1768885464300,0.92485393,3165.3,3163.3,0.47698815]
[1768885464301,0.92485393,3165.1,3163.3,0.47698815]
[1768885464688,0.92485393,3165.1,3163.3,0.98298815]
[1768885465092,0.92485393,3165.1,3163.3,0.47698815]
[1768885465304,0.92485393,3165.1,3163.3,4.14423103]
[1768885465305,0.92485393,3164.9,3163.3,4.14423103]
[1768885465772,0.92485393,3164.9,3163.3,6.79948668]
[1768885465974,0.92485393,3164.9,3163.4,0.68014867]
[1768885466173,0.92485393,3164.9,3163.4,1.18614867]
[1768885467080,0.92485393,3165.1,3163.4,6.75302842]
[1768885467282,0.92485393,3165.1,3163.6,6.32191174]
[1768885467487,0.92485393,3165.1,3163.7,0.68279117]
[1768885468730,0.92485393,3165.3,3163.4,0.68014867]
[1768885468912,0.92485393,3165.1,3163.0,0.506]
[1768885469090,0.92485393,3165.1,3163.2,3.16328104]
[1768885469288,0.92485393,3164.9,3163.2,0.002]
[1768885469493,6.31911532,3165.0,3163.2,0.002]
[1768885469494,0.92485393,3164.7,3163.2,0.002]
[1768885471423,0.92485393,3164.5,3163.2,0.002]
[1768885471618,0.92485393,3164.3,3163.2,0.002]
[1768885472216,4.08475613,3164.7,3163.2,0.002]
[1768885472741,0.92485393,3164.7,3163.2,0.002]
[1768885473028,1.08977902,3164.7,3163.2,0.002]
[1768885473397,4.24963721,3164.7,3163.2,0.002]
[1768885473598,0.92485393,3164.6,3163.2,0.002]
[1768885475528,0.92485393,3164.4,3163.2,0.002]
[1768885475741,0.92485393,3164.2,3163.2,0.002]
[1768885476938,0.16492509,3164.7,3163.2,0.002]
[1768885476939,4.08485155,3164.6,3163.2,0.002]
[1768885477235,0.92485393,3164.5,3163.2,0.002]
[1768885478744,0.92485393,3164.4,3163.2,0.002]
[1768885478927,0.92485393,3164.4,3162.9,0.002]
[1768885479137,0.92485393,3164.2,3162.8,0.002]
[1768885479419,0.92485393,3164.1,3162.8,0.002]
[1768885480236,4.08497221,3164.5,3162.8,0.002]
[1768885480907,0.92485393,3164.5,3162.9,1.43630325]
[1768885481104,3.66985714,3164.8,3163.0,0.93130325]
[1768885481320,0.77543469,3164.8,3163.1,1.43630325]
[1768885481646,0.001,3165.1,3163.4,0.93130325]
[1768885482332,0.001,3165.4,3163.8,0.93130325]
[1768885482859,0.001,3165.4,3163.7,5.98846734]
[1768885482860,0.001,3165.4,3163.9,1.48363198]
[1768885483148,0.001,3165.4,3164.0,0.505]
[1768885483677,0.9187254,3165.4,3163.9,3.66463014]
[1768885483845,0.9187254,3165.4,3164.0,0.36646301]
[1768885484323,0.9187254,3165.4,3163.7,0.504]
[1768885484528,0.9187254,3165.4,3163.1,0.002]
[1768885484529,0.9187254,3165.4,3163.3,4.13981024]
[1768885484729,0.9187254,3165.4,3163.4,0.504]
[1768885484954,0.9177254,3165.3,3163.4,0.504]
[1768885485533,0.9177254,3165.1,3163.4,3.66512947]
[1768885485728,6.31871602,3165.2,3163.5,0.36651295]
[1768885485729,0.9177254,3164.9,3163.5,0.36651295]
[1768885485945,0.9177254,3164.9,3163.3,0.504]
[1768885486161,0.9177254,3164.9,3163.3,3.66518413]
[1768885486328,0.9177254,3164.9,3163.4,3.16112298]
[1768885486528,3.15935801,3165.2,3163.4,4.13975496]
[1768885486728,0.40770834,3165.1,3163.5,0.4643755]
[1768885487032,1.32543374,3165.1,3163.5,0.4643755]
[1768885487649,4.48495654,3165.1,3163.6,0.504]
[1768885488363,0.9177254,3165.0,3163.5,0.4643755]
[1768885488557,0.9177254,3165.0,3163.7,0.504]
[1768885488960,0.9177254,3165.0,3163.2,3.16128965]
[1768885489482,0.9177254,3165.0,3163.3,0.504]
[1768885489662,3.15965749,3164.9,3163.3,0.504]
[1768885490063,0.9177254,3164.6,3163.1,0.002]
[1768885490661,0.9177254,3164.5,3163.1,0.002]
[1768885491770,0.9177254,3164.3,3163.1,0.002]
[1768885492862,0.9177254,3164.6,3163.1,0.002]
[1768885493163,0.95776052,3164.5,3163.1,0.002]
[1768885493465,0.72776797,3164.4,3163.1,0.002]
[1768885493653,3.88795653,3164.4,3163.1,0.002]
[1768885494036,0.72776797,3164.4,3163.1,0.002]
[1768885494366,0.95776052,3164.3,3163.1,0.002]
[1768885494661,0.72776797,3164.4,3163.1,0.002]
[1768885494849,1.46776052,3164.7,3163.2,0.31635114]
[1768885495059,5.98946734,3165.4,3163.2,0.31635114]
[1768885495060,0.95776052,3165.1,3163.4,0.93400918]
[1768885495259,0.95776052,3165.1,3163.2,0.31635114]
[1768885495570,0.95776052,3165.0,3163.5,0.504]
[1768885495880,0.95776052,3164.7,3163.5,0.504]
[1768885496033,0.95776052,3164.7,3163.4,0.506]
[1768885497389,0.72767206,3164.9,3163.5,4.09506163]
[1768885497677,0.95776052,3165.3,3163.5,4.09506163]
[1768885497862,4.11702375,3165.3,3163.5,4.09506163]
[1768885498064,1.3695629,3165.3,3163.7,0.93400918]
[1768885498270,0.95776052,3165.3,3163.7,0.93400918]
[1768885498743,0.95776052,3165.3,3163.8,1.43800918]
[1768885498942,0.95776052,3165.3,3163.8,0.504]
[1768885499142,0.001,3165.4,3163.9,0.93400918]
[1768885499876,0.001,3165.4,3164.0,6.3211125]
[1768885500038,0.001,3165.4,3164.1,1.22951217]
[1768885500039,0.95876052,3165.4,3164.1,1.22951217]
[1768885500233,0.95876052,3165.4,3163.4,0.93600918]
[1768885500483,0.95876052,3165.4,3163.6,3.16094603]
[1768885500781,0.95876052,3165.4,3163.4,0.002]
[1768885501144,0.95876052,3165.4,3163.5,3.66497251]
[1768885501466,0.95876052,3165.4,3163.6,0.36669725]
[1768885501670,0.95876052,3165.4,3163.7,0.93400918]
[1768885501852,0.95876052,3165.4,3163.9,0.93400918]
[1768885502239,0.001,3165.4,3163.9,0.93400918]
[1768885502708,0.95776052,3165.3,3163.4,0.93600918]
[1768885502902,0.95776052,3165.1,3163.5,0.504]
[1768885503170,0.95776052,3165.1,3163.6,3.16088649]
[1768885503382,0.95776052,3165.1,3163.7,0.504]
[1768885503541,0.95776052,3165.1,3163.7,3.66485404]
[1768885503740,0.95776052,3165.1,3163.7,0.504]
[1768885503943,4.11725327,3165.1,3163.8,0.36648674]
[1768885504440,0.95776052,3165.1,3163.8,0.36648674]
[1768885505556,0.001,3165.4,3163.8,0.36648674]